bitfinex-derivatives/quotes_ETHF0:USTF0_20240831
["timestamp","ask_amount","ask_price","bid_price","bid_amount"]
[1725125095425,4.57696233,2504.0,2503.8,0.23962]
[1725125095624,4.57696233,2504.0,2503.9,0.23961]
[1725125095931,3.21379197,2504.1,2504.0,0.2396]
[1725125096826,0.00599197,2504.1,2504.0,0.2396]
[1725125097221,0.00599197,2504.1,2504.0,4.2332]
[1725125098023,0.00599197,2504.1,2504.0,0.2396]
[1725125102034,4.7742016,2504.1,2503.9,0.2396]
[1725125102724,4.5346116,2504.1,2503.7,1.3371]
[1725125102931,4.5346116,2504.1,2503.9,0.2396]
[1725125103532,4.7742116,2504.1,2503.9,0.2396]
[1725125103731,0.23961,2504.0,2503.7,0.92262]
[1725125104036,4.74185181,2503.9,2503.7,0.92262]
[1725125104232,0.6469,2503.8,2503.7,0.92262]
[1725125104431,1.3344,2503.8,2503.7,0.92262]
[1725125105832,4.5422,2503.8,2503.7,0.92262]
[1725125107455,4.5422,2503.8,2503.7,0.683]
[1725125108629,1.3344,2503.8,2503.7,0.683]
[1725125109028,4.5422,2503.8,2503.7,0.683]
[1725125109439,12.84757274,2503.8,2503.6,0.00599197]
[1725125109737,0.23963,2503.7,2503.6,0.65149197]
[1725125110643,9.09280274,2503.8,2503.6,0.65149197]
[1725125111342,0.23963,2503.7,2503.6,0.65149197]
[1725125112140,3.2078,2503.7,2503.6,0.65149197]
[1725125112439,3.2078,2503.7,2503.6,0.89113197]
[1725125114542,3.44743,2503.7,2503.6,0.00599197]
[1725125114842,8.07032034,2503.7,2503.6,0.00599197]
[1725125116735,7.83069034,2503.7,2503.6,0.00599197]
[1725125117140,7.83069034,2503.7,2503.6,0.24563197]
[1725125118441,3.2078,2504.0,2503.9,0.23961]
[1725125118947,0.00599197,2504.1,2504.0,0.2396]
[1725125119338,0.00599197,2504.1,2503.7,2.1129]
[1725125119339,0.00599197,2504.1,2503.9,0.2396]
[1725125119544,6.28395293,2504.1,2504.0,0.2396]
[1725125119736,6.62341345,2504.1,2503.9,0.2396]
[1725125119945,0.6411,2504.0,2503.8,0.23961]
[1725125120342,0.6411,2504.0,2503.9,0.23961]
[1725125120840,5.26909298,2504.0,2503.7,0.6729]
[1725125121038,1.44,2503.9,2503.8,0.23962]
[1725125121240,1.67961,2503.9,2503.7,0.23962]
[1725125121446,4.08902,2503.8,2503.6,0.24562197]
[1725125121849,4.63017526,2503.7,2503.6,0.24562197]
[1725125123148,5.29777526,2503.7,2503.6,0.24562197]
[1725125124446,0.6416,2503.8,2503.7,0.23963]
[1725125124847,0.6411,2504.0,2503.9,0.23961]
[1725125125053,1.43727213,2504.0,2503.9,0.23961]
[1725125125347,10.26378083,2504.0,2503.8,0.23961]
[1725125125551,6.1703087,2504.0,2503.8,0.23961]
[1725125126346,0.09987271,2503.9,2503.8,0.23961]
[1725125127151,0.33948271,2503.9,2503.7,0.23962]
[1725125127345,0.23961,2503.9,2503.7,0.23962]
[1725125127744,0.23962,2503.8,2503.6,0.24562197]
[1725125128048,4.57880307,2503.8,2503.6,0.24562197]
[1725125128246,0.6554,2503.7,2503.6,0.24562197]
[1725125130552,0.75528225,2503.7,2503.6,0.24562197]
[1725125130747,0.6554,2503.7,2503.6,0.24562197]
[1725125131453,4.2393062,2503.8,2503.7,0.23963]
[1725125131759,1.3261,2504.0,2503.9,0.23961]
[1725125132053,0.00599197,2504.1,2504.0,0.2396]
[1725125132950,0.00599197,2504.1,2504.0,0.9168]
[1725125133448,0.00599197,2504.1,2504.0,0.2396]
[1725125133751,1.44599197,2504.1,2503.9,0.9404]
[1725125133954,0.6899,2504.0,2503.9,0.9404]
[1725125134351,0.6899,2504.0,2503.8,0.23961]
[1725125134557,0.92461,2503.9,2503.6,0.70669197]
[1725125134853,4.15969814,2503.8,2503.7,0.23962]
[1725125135643,4.15969814,2503.8,2503.6,0.70669197]
[1725125135850,4.15969814,2503.8,2503.6,0.94632197]
[1725125137057,4.15969814,2503.8,2503.7,0.23963]
[1725125137454,4.15969814,2503.8,2503.6,0.94632197]
[1725125138658,0.09987688,2503.7,2503.6,0.94632197]
[1725125139257,0.09987666,2503.7,2503.6,0.94632197]
[1725125141557,4.15969814,2503.8,2503.7,0.23963]
[1725125142062,3.8977,2504.0,2503.9,0.23961]
[1725125142063,3.2078,2504.0,2503.9,0.23961]
[1725125142259,0.67609197,2504.1,2504.0,0.2396]
[1725125142562,0.86717985,2504.1,2504.0,0.2396]
[1725125142866,0.96704444,2504.1,2504.0,0.2396]
[1725125143365,0.96704444,2504.1,2504.0,0.9423]
[1725125144353,0.29694444,2504.1,2504.0,4.9359]
[1725125145067,0.29694444,2504.1,2504.0,8.3859]
[1725125145366,0.29696696,2504.1,2504.0,8.98491]
[1725125145754,0.29696696,2504.1,2504.0,14.98491]
[1725125145959,0.00599197,2504.1,2504.0,14.98491]
[1725125146362,1.97e-06,2504.1,2504.0,14.98491]
[1725125147158,1.97e-06,2504.1,2504.0,16.03183488]
[1725125147354,1.97e-06,2504.1,2504.0,15.58392]
[1725125147555,1.97e-06,2504.1,2504.0,16.63084488]
[1725125148263,1.97e-06,2504.1,2504.0,15.58392]
[1725125149169,1.97e-06,2504.1,2504.0,14.98491]
[1725125154175,1.97e-06,2504.1,2504.0,18.19271]
[1725125154669,1.97e-06,2504.1,2504.0,18.79172]
[1725125156573,0.6637,2504.8,2504.7,0.23953]
[1725125156761,0.6637,2504.8,2504.7,0.92193]
[1725125157074,0.6637,2504.8,2504.7,0.23953]
[1725125162268,0.64169197,2505.0,2504.9,0.23951]
[1725125168185,0.64169197,2505.0,2504.9,4.91201]
[1725125169081,0.00599197,2505.0,2504.9,4.91201]
[1725125170985,0.00599197,2505.0,2504.9,5.5108]
[1725125172178,0.00599197,2505.0,2504.9,6.9508]
[1725125173385,0.6844,2505.2,2505.1,0.83823]
[1725125173579,0.6844,2505.2,2505.1,9.47803]
[1725125173778,3.2078,2505.7,2505.6,0.23945]
[1725125174189,3.2078,2505.7,2505.4,0.23947]
[1725125174492,0.6858,2505.6,2505.4,0.23947]
[1725125174681,0.6858,2505.6,2505.5,0.23946]
[1725125175183,5.3542,2505.6,2505.4,0.23946]
[1725125175387,1.363,2505.6,2505.5,0.23946]
[1725125175887,5.3542,2505.6,2505.5,0.23946]
[1725125176990,1.363,2505.6,2505.5,0.23946]
[1725125180783,1.363,2505.6,2505.5,4.23066]
[1725125181292,0.6858,2505.6,2505.5,4.82931]
[1725125181786,0.69409197,2505.8,2505.7,0.23944]
[1725125181981,0.70329197,2505.8,2505.7,1.67944]
[1725125182185,0.00599197,2505.8,2505.7,6.26924]
[1725125182382,0.00599197,2505.8,2505.7,6.90804]
[1725125183583,0.00599197,2505.8,2505.7,12.90804]
[1725125184591,0.00599197,2505.8,2505.7,1.67944]
[1725125186386,0.00599197,2505.8,2505.7,0.23944]
[1725125190495,0.00599197,2505.8,2505.7,0.83804]
[1725125190688,0.00599197,2505.8,2505.7,4.82924]
[1725125192190,0.00599197,2505.8,2505.7,5.48924]
[1725125193799,0.00599197,2505.8,2505.7,11.48924]
[1725125197601,0.00599197,2505.8,2505.7,12.08784]
[1725125199916,1.3883,2506.2,2506.1,0.2394]
[1725125200209,1.3883,2506.2,2506.1,3.6894]
[1725125200394,1.3883,2506.2,2506.1,3.89011521]
[1725125202300,1.3883,2506.2,2506.1,7.88051521]
[1725125202695,1.3883,2506.2,2506.1,8.47901521]
[1725125202902,1.3883,2506.2,2506.1,9.15131521]
[1725125203294,0.00599197,2506.4,2506.3,0.23938]
[1725125203494,0.00599197,2506.4,2506.3,7.53968]
[1725125203694,0.00599197,2506.4,2506.3,11.52928]
[1725125203900,0.65859197,2506.4,2506.3,11.52928]
[1725125206294,0.65859197,2506.4,2506.3,9.51928]
[1725125206904,0.00599197,2506.4,2506.3,10.11774]
[1725125207199,0.00599197,2506.4,2506.3,9.51928]
[1725125211395,0.00599197,2506.4,2506.3,3.44718]
[1725125211595,0.00599197,2506.4,2506.3,4.88718]
[1725125214501,0.00599197,2506.4,2506.3,1.67938]
[1725125219111,0.00599197,2506.4,2506.3,1.44]
[1725125219323,1.33069197,2506.4,2506.3,1.67938]
[1725125219611,1.96429197,2506.4,2506.2,1.67939]
[1725125222311,4.22898,2506.3,2506.1,0.20071521]
[1725125222507,8.38141892,2506.3,2506.1,0.20071521]
[1725125222701,3.9904,2506.2,2506.1,0.20071521]
[1725125223614,1.96429197,2506.4,2506.2,0.23939]
[1725125224914,1.96429197,2506.4,2506.3,0.23938]
[1725125225111,2.06406717,2506.4,2506.3,0.23938]
[1725125225310,2.06406717,2506.4,2506.1,1.64071521]
[1725125225311,6.05366717,2506.4,2506.2,0.23938]
[1725125225508,1.96429197,2506.4,2506.3,0.23938]
[1725125226005,6.05366716,2506.4,2506.3,0.23938]
[1725125227515,2.06406716,2506.4,2506.3,0.23938]
[1725125228913,1.96429197,2506.4,2506.3,0.23938]
[1725125229119,2.06406288,2506.4,2506.3,0.23938]
[1725125229309,6.05366288,2506.4,2506.3,0.23938]
[1725125229513,2.06406288,2506.4,2506.3,0.23938]
[1725125231225,1.96429197,2506.4,2506.3,0.23938]
[1725125231623,1.31039197,2506.4,2506.3,0.23938]
[1725125231816,1.41016259,2506.4,2506.3,0.23938]
[1725125232216,1.31039197,2506.4,2506.3,0.23938]
[1725125232712,1.31039197,2506.4,2506.3,0.89748]
[1725125232713,0.10576127,2506.4,2506.3,0.89748]
[1725125232917,0.00599197,2506.4,2506.3,0.89748]
[1725125233123,0.00599197,2506.4,2506.3,1.49948]
[1725125234529,0.00599197,2506.4,2506.3,0.23938]
[1725125236723,0.00599197,2506.4,2506.3,0.88668]
[1725125238459,0.00599197,2506.4,2506.3,5.47474]
[1725125241033,0.00599197,2506.4,2506.3,8.68254]
[1725125242325,0.00599197,2506.4,2506.3,14.68254]
[1725125246532,0.00599197,2506.4,2506.3,15.281]
[1725125251234,0.6319,2506.9,2506.8,0.23933]
[1725125251430,0.6319,2506.9,2506.8,1.67933]
[1725125252335,0.6319,2506.9,2506.8,1.44]
[1725125253533,0.6319,2506.9,2506.8,1.67933]
[1725125259439,0.6319,2506.9,2506.8,5.66813]
[1725125259937,0.6319,2506.9,2506.8,1.67933]
[1725125261945,0.6319,2506.9,2506.8,1.44]
[1725125262340,4.6207,2506.9,2506.7,1.67934]
[1725125262540,0.4151,2506.8,2506.7,1.67934]
[1725125263045,4.4047,2506.8,2506.7,1.67934]
[1725125263744,4.4047,2506.8,2506.6,0.00599197]
[1725125263945,0.4019,2506.7,2506.6,0.00599197]
[1725125265448,4.3915,2506.7,2506.5,4.88716]
[1725125267954,4.3915,2506.7,2506.5,1.44]
[1725125268148,3.9896,2506.6,2506.5,1.44]
[1725125268369,8.58451408,2506.6,2506.3,1.44599197]
[1725125268653,0.67086,2506.5,2506.3,0.00599197]
[1725125268952,5.01333408,2506.4,2506.1,0.20071521]
[1725125269147,0.405,2506.3,2506.0,1.44]
[1725125269350,0.23939,2506.2,2506.0,1.44]
[1725125269648,8.72223175,2506.2,2506.0,1.44]
[1725125269847,3.9904,2506.1,2506.0,1.44]
[1725125270246,0.23939,2506.2,2506.0,1.44]
[1725125270449,3.9904,2506.1,2506.0,1.44]
[1725125270752,4.22981,2506.1,2505.8,4.11899197]
[1725125270955,4.4275,2506.0,2505.6,1.44]
[1725125271146,0.64442,2505.9,2505.6,1.44]
[1725125271346,5.13967592,2505.9,2505.6,1.44]
[1725125271651,9.13087592,2505.9,2505.6,1.67944]
[1725125272343,0.23943,2505.8,2505.6,1.44]
[1725125272747,4.23063,2505.8,2505.6,1.44]
[1725125273151,3.9912,2505.8,2505.6,1.67945]
[1725125274147,0.4154,2505.7,2505.6,1.67945]
[1725125274348,0.4154,2505.7,2505.6,1.44]
[1725125274550,4.4066,2505.7,2505.6,1.44]
[1725125276855,4.64604,2505.7,2505.6,1.44]
[1725125278454,4.64604,2505.7,2505.5,0.00599197]
[1725125278455,0.23945,2505.6,2505.5,0.00599197]
[1725125278657,0.23945,2505.6,2505.1,0.23949]
[1725125278658,0.23948,2505.3,2505.1,1.44]
[1725125278847,3.9912,2505.6,2504.9,1.44]
[1725125278848,0.23949,2505.1,2504.9,1.44]
[1725125279051,0.8816,2505.0,2504.9,1.44]
[1725125279456,0.8816,2505.0,2504.9,1.67951]
[1725125279954,0.4401,2505.0,2504.9,1.67951]
[1725125281754,0.4401,2505.0,2504.9,1.44]
[1725125282459,0.4401,2505.0,2504.7,3.21379197]
[1725125282460,8.77731645,2505.0,2504.7,4.65379197]
[1725125282654,0.67961,2505.0,2504.7,4.89331197]
[1725125282956,0.4401,2505.0,2504.8,1.67952]
[1725125283158,0.4401,2505.0,2504.9,0.23951]
[1725125285263,4.4321,2505.0,2504.8,1.67952]
[1725125285466,0.4401,2505.0,2504.8,1.67952]
[1725125286060,0.4401,2505.0,2504.9,0.23951]
[1725125286454,4.4321,2505.0,2504.9,0.23951]
[1725125287560,0.68109,2505.2,2505.1,0.23949]
[1725125287561,0.4416,2505.2,2505.1,0.23949]
[1725125287962,4.4336,2505.2,2505.1,0.23949]
[1725125288368,4.4336,2505.2,2505.0,1.6795]
[1725125288574,0.4416,2505.2,2505.1,0.23949]
[1725125288870,4.4336,2505.2,2505.1,0.23949]
[1725125289063,4.4336,2505.2,2505.1,0.62729]
[1725125293081,0.4416,2505.2,2505.1,0.62729]
[1725125293373,0.4416,2505.2,2505.1,2.06729]
[1725125293674,3.2078,2505.5,2505.4,0.23947]
[1725125294174,7.199,2505.5,2505.4,0.23947]
[1725125294385,3.9912,2505.5,2505.4,0.23947]
[1725125299682,4.19484,2505.7,2505.5,0.23945]
[1725125299886,8.18604,2505.7,2505.5,0.23945]
[1725125300398,8.18604,2505.7,2505.1,0.3878]
[1725125300399,3.9554,2505.7,2505.6,0.23945]
[1725125300578,3.9554,2505.7,2505.5,0.23945]
[1725125301078,7.9466,2505.7,2505.5,0.23945]
[1725125301287,8.18604,2505.7,2505.5,0.23945]
[1725125301482,7.9466,2505.7,2505.5,0.23945]
[1725125302174,8.18604,2505.7,2505.5,0.23945]
[1725125306280,7.9466,2505.7,2505.5,0.23945]
[1725125306481,8.18604,2505.7,2505.5,0.23945]
[1725125307881,4.97824,2505.7,2505.5,0.23945]
[1725125308082,8.18604,2505.7,2505.5,0.23945]
[1725125309288,4.19484,2505.7,2505.5,0.23945]
[1725125310781,3.9554,2505.7,2505.6,0.23945]
[1725125310983,7.9466,2505.7,2505.6,0.23945]
[1725125311779,4.7388,2505.7,2505.6,0.23945]
[1725125311989,7.9466,2505.7,2505.6,0.23945]
[1725125312381,3.9554,2505.7,2505.6,0.23945]
[1725125312581,3.9554,2505.7,2505.6,1.67945]
[1725125313283,0.7476,2505.7,2505.6,1.67945]
[1725125313588,0.7476,2505.7,2505.6,0.23945]
[1725125316595,0.84740298,2505.7,2505.6,0.23945]
[1725125316995,0.7476,2505.7,2505.6,0.23945]
[1725125317891,0.98704,2505.7,2505.5,1.67945]
[1725125318194,0.33925978,2505.6,2505.4,0.23946]
[1725125318389,0.62705,2505.6,2505.4,0.23946]
[1725125319696,0.09980906,2505.5,2505.4,0.23946]
[1725125319896,0.62705,2505.6,2505.4,0.23946]
[1725125320388,0.3876,2505.6,2505.5,0.23946]
[1725125320587,0.487407,2505.6,2505.4,0.23946]
[1725125320786,0.099807,2505.5,2505.4,0.23946]
[1725125323505,0.62705,2505.6,2505.4,0.23946]
[1725125323700,0.62705,2505.6,2505.3,1.67947]
[1725125324288,0.09980935,2505.5,2505.3,1.67947]
[1725125324599,0.62705,2505.6,2505.2,0.3866]
[1725125324600,0.23948,2505.3,2505.2,0.3866]
[1725125324983,0.33929586,2505.3,2505.2,0.3866]
[1725125325304,0.23948,2505.3,2505.2,0.3866]
[1725125325794,0.3876,2505.6,2505.2,0.3866]
[1725125325795,0.23947,2505.4,2505.2,0.3866]
[1725125325997,0.3838,2505.3,2505.2,0.3866]
[1725125326197,0.7528,2505.3,2505.2,0.3866]
[1725125326588,0.7528,2505.3,2505.2,0.62608]
[1725125326999,4.7448,2505.3,2505.2,0.62608]
[1725125327705,4.84461373,2505.3,2505.2,0.62608]
[1725125328097,4.84461307,2505.3,2505.2,0.62608]
[1725125331190,0.85261307,2505.3,2505.2,0.62608]
[1725125332898,1.04387327,2505.3,2505.2,0.62608]
[1725125333100,1.04387668,2505.3,2505.2,0.62608]
[1725125338307,0.85261307,2505.3,2505.2,0.62608]
[1725125338507,0.7528,2505.3,2505.2,0.62608]
[1725125338904,1.04389181,2505.3,2505.2,0.62608]
[1725125342308,1.04389181,2505.3,2504.8,4.113]
[1725125342508,0.2395,2505.0,2504.8,5.79252]
[1725125342714,0.86692043,2504.9,2504.8,5.79252]
[1725125343317,0.86692043,2504.9,2504.8,4.35252]
[1725125343515,0.86692043,2504.9,2504.8,5.79252]
[1725125344126,0.09982043,2504.9,2504.8,9.78452]
[1725125344415,3.9957,2505.1,2505.0,0.2395]
[1725125345420,4.18697044,2505.1,2505.0,0.2395]
[1725125345715,4.2867996,2505.1,2505.0,0.2395]
[1725125346611,1.07899373,2505.1,2505.0,1.6795]
[1725125346817,0.69439373,2505.1,2505.0,1.6795]
[1725125347113,0.50312916,2505.1,2505.0,1.6795]
[1725125347310,0.50312916,2505.1,2505.0,2.0629]
[1725125348711,0.50312916,2505.1,2505.0,0.6229]
[1725125351514,0.09982916,2505.1,2505.0,12.65367]
[1725125351717,4.13967287,2505.6,2505.5,0.23946]
[1725125351718,0.3734,2505.6,2505.5,0.23946]
[1725125352020,0.3984,2505.7,2505.6,0.23945]
[1725125352627,0.49819952,2505.7,2505.6,0.23945]
[1725125353430,0.00599197,2505.8,2505.7,0.23944]
[1725125353721,0.00599197,2505.8,2505.7,5.03174]
[1725125354613,0.00599197,2505.8,2505.7,4.43314]
[1725125354812,0.00599197,2505.8,2505.7,4.82464]
[1725125357126,0.00599197,2505.8,2505.7,8.03244]
[1725125357424,0.00599197,2505.8,2505.7,14.03244]
[1725125360527,0.00599197,2505.8,2505.7,14.63104]
[1725125362624,0.00599197,2505.8,2505.7,7.82994]
[1725125363323,0.00599197,2505.8,2505.7,4.62214]
[1725125363622,0.00599197,2505.8,2505.7,6.06214]
[1725125363812,0.00599197,2505.8,2505.7,2.07094]
[1725125365225,0.38639197,2505.8,2505.7,2.07094]
[1725125366419,0.38639197,2505.8,2505.7,6.06214]
[1725125367020,1.97e-06,2505.8,2505.7,16.46714]
[1725125371434,1.97e-06,2505.8,2505.7,16.76261788]
[1725125373932,1.97e-06,2505.8,2505.7,13.55481788]
[1725125374134,1.97e-06,2505.8,2505.7,16.76261788]
[1725125375336,1.97e-06,2505.8,2505.7,13.55481788]
[1725125375832,1.97e-06,2505.8,2505.7,16.76261788]
[1725125376430,1.97e-06,2505.8,2505.7,13.55481788]
[1725125376623,1.97e-06,2505.8,2505.7,16.76261788]
[1725125377837,1.97e-06,2505.8,2505.7,13.55481788]
[1725125378044,1.97e-06,2505.8,2505.7,16.76261788]
[1725125380140,1.97e-06,2505.8,2505.7,13.55481788]
[1725125380542,1.97e-06,2505.8,2505.7,16.76261788]
[1725125382140,1.97e-06,2505.8,2505.7,12.77141788]
[1725125382344,1.97e-06,2505.8,2505.7,16.76261788]
[1725125385947,3.2078,2506.9,2505.8,5.18756]
[1725125386142,0.388,2506.7,2506.6,0.23935]
[1725125386441,0.388,2506.7,2506.6,0.83774]
[1725125387153,0.388,2506.7,2506.6,4.82734]
[1725125388842,0.388,2506.7,2506.6,6.26734]
[1725125389639,0.388,2506.7,2506.6,5.66895]
[1725125390046,0.388,2506.7,2506.6,6.26734]
[1725125390241,0.7485,2506.8,2506.7,0.23934]
[1725125390551,0.3811,2506.8,2506.7,4.3992]
[1725125391963,0.3811,2506.8,2506.7,8.3888]
[1725125393348,0.00599197,2506.9,2506.8,0.83767]
[1725125393550,0.00599197,2506.9,2506.8,2.27767]
[1725125393739,0.00599197,2506.9,2506.8,6.26647]
[1725125394944,0.00599197,2506.9,2506.8,9.47427]
[1725125399448,0.00599197,2506.9,2506.8,10.07261]
[1725125400346,0.00599197,2506.9,2506.8,9.47427]
[1725125400544,0.00599197,2506.9,2506.8,4.04547]
[1725125400766,3.99479197,2506.9,2506.7,0.23934]
[1725125400956,0.00599197,2506.9,2506.8,0.23933]
[1725125401348,3.99479197,2506.9,2506.8,0.23933]
[1725125402353,0.00599197,2506.9,2506.8,0.23933]
[1725125406160,3.99479197,2506.9,2506.8,0.23933]
[1725125407760,0.00599197,2506.9,2506.8,0.23933]
[1725125412866,3.99479197,2506.9,2506.8,0.23933]
[1725125413063,3.99479197,2506.9,2506.7,1.67934]
[1725125413498,3.99479197,2506.9,2506.8,0.23933]
[1725125414759,17.56934186,2506.9,2506.4,0.00599197]
[1725125414963,0.23934,2506.7,2506.4,0.00599197]
[1725125415171,3.9453,2506.6,2506.4,0.00599197]
[1725125415368,8.93469989,2506.6,2506.1,1.44]
[1725125415568,4.56795,2506.6,2506.2,0.23939]
[1725125416067,9.99755,2506.6,2506.2,0.23939]
[1725125416264,3.9896,2506.5,2506.2,0.23939]
[1725125416464,3.9896,2506.4,2506.1,1.68538197]
[1725125416666,8.59203662,2506.5,2506.1,1.68538197]
[1725125416867,3.9896,2506.5,2506.1,1.68538197]
[1725125417060,4.4009623,2506.4,2506.1,1.68538197]
[1725125417263,4.4009623,2506.4,2506.1,0.00599197]
[1725125417463,3.9904,2506.3,2506.1,0.00599197]
[1725125417662,3.9904,2506.3,2506.1,0.24539197]
[1725125417867,4.3607,2506.2,2506.1,0.24539197]
[1725125418176,0.3703,2506.2,2506.1,0.24539197]
[1725125418473,4.3607,2506.2,2506.1,0.24539197]
[1725125418874,7.5685,2506.2,2506.1,0.00599197]
[1725125419171,18.01833206,2506.2,2505.8,4.113]
[1725125419479,18.01833206,2506.2,2505.7,1.44]
[1725125419480,4.6084,2506.1,2505.7,1.44]
[1725125419666,0.3786,2506.1,2505.7,1.67944]
[1725125419866,4.62147857,2506.0,2505.7,1.67944]
[1725125420268,8.61187857,2506.0,2505.7,1.67944]
[1725125420768,8.61187857,2506.0,2505.7,1.44]
[1725125420975,8.61187857,2506.0,2505.5,3.2078]
[1725125420976,4.22982,2505.9,2505.5,3.2078]
[1725125421170,0.23942,2505.9,2505.5,3.44725]
[1725125421370,0.3549,2505.8,2505.5,4.88725]
[1725125421674,0.3549,2505.8,2505.5,1.67945]
[1725125422372,0.3627,2505.7,2505.5,1.67945]
[1725125422571,3.5777,2505.6,2504.8,4.113]
[1725125422766,1.44,2505.4,2504.8,1.67952]
[1725125422973,0.23948,2505.3,2504.8,1.67952]
[1725125423305,0.3627,2505.2,2504.8,1.67952]
[1725125423473,0.3699,2505.1,2504.8,1.67952]
[1725125423777,0.3699,2505.1,2504.9,0.23951]
[1725125423972,3.992,2505.0,2504.9,0.23951]
[1725125424176,4.3619,2505.1,2504.9,0.23951]
[1725125424874,0.3699,2505.1,2504.9,0.23951]
[1725125425078,0.3699,2505.1,2505.0,0.2395]
[1725125425266,0.3627,2505.2,2504.9,0.23951]
[1725125425471,0.7354,2505.2,2504.9,0.23951]
[1725125426264,0.7354,2505.2,2504.8,0.23952]
[1725125426482,0.97489,2505.2,2504.7,0.23953]
[1725125426776,4.27754533,2505.1,2504.7,0.23953]
[1725125426980,4.27754533,2505.1,2504.6,3.2078]
[1725125427473,0.23951,2505.0,2504.6,3.2078]
[1725125427675,8.26954533,2505.1,2504.6,3.2078]
[1725125427882,7.62499047,2504.9,2504.5,4.113]
[1725125428070,3.44732,2504.9,2504.5,4.113]
[1725125428270,0.3719,2504.8,2504.5,4.113]
[1725125428475,0.7305,2504.7,2504.5,4.113]
[1725125428874,4.7233,2504.7,2504.5,4.113]
[1725125429080,4.7233,2504.7,2504.4,0.62006]
[1725125429270,0.7305,2504.7,2504.4,0.62006]
[1725125429671,0.7305,2504.7,2504.5,0.23955]
[1725125429881,0.7305,2504.7,2504.4,0.62006]
[1725125430077,0.7305,2504.7,2504.4,0.3805]
[1725125430576,0.97003,2504.7,2504.4,0.3805]
[1725125431478,0.7305,2504.7,2504.4,0.3805]
[1725125431679,0.7305,2504.7,2504.4,0.62006]
[1725125432178,0.7305,2504.7,2504.5,0.23955]
[1725125433080,4.7233,2504.7,2504.5,0.23955]
[1725125433274,0.7305,2504.7,2504.5,0.23955]
[1725125433486,0.7305,2504.7,2504.6,0.23954]
[1725125433487,3.9928,2504.7,2504.6,0.23954]
[1725125433782,0.3719,2504.8,2504.7,0.23953]
[1725125433983,4.3647,2504.8,2504.7,0.23953]
[1725125434175,4.3647,2504.8,2504.6,0.23954]
[1725125434370,4.60423,2504.8,2504.5,0.19924439]
[1725125434570,4.3647,2504.8,2504.5,0.23955]
[1725125434775,0.3719,2504.8,2504.6,0.23954]
[1725125435176,4.3647,2504.8,2504.6,0.23954]
[1725125436373,0.3719,2504.8,2504.7,0.23953]
[1725125437081,3.2078,2504.9,2504.8,0.23952]
[1725125437880,3.2078,2505.0,2504.9,0.23951]
[1725125438679,3.2078,2505.0,2504.9,0.62691]
[1725125440279,3.2078,2505.4,2505.3,0.23948]
[1725125440478,3.2078,2505.4,2504.9,4.97819]
[1725125440479,0.00599197,2505.5,2505.0,3.8042]
[1725125440683,0.00599197,2505.5,2505.3,0.23947]
[1725125442676,11.39723322,2505.4,2505.0,0.3542]
[1725125442975,7.40603322,2505.4,2505.0,0.3542]
[1725125443183,7.78403322,2505.4,2505.0,0.3542]
[1725125443486,7.78403322,2505.4,2505.1,0.23949]
[1725125443682,8.02350322,2505.4,2505.0,0.2395]
[1725125443881,0.99628,2505.3,2505.0,0.2395]
[1725125444083,0.7568,2505.3,2505.0,0.2395]
[1725125444286,4.25265295,2505.2,2505.0,0.2395]
[1725125444685,8.24465295,2505.2,2505.0,0.2395]
[1725125445183,8.24465295,2505.2,2505.1,0.23949]
[1725125445483,4.25265295,2505.2,2505.0,0.2395]
[1725125445690,0.7568,2505.3,2505.0,0.2395]
[1725125445881,0.99628,2505.3,2505.0,0.2395]
[1725125446885,0.99628,2505.3,2504.9,0.3874]
[1725125446886,0.7568,2505.3,2504.9,0.3874]
[1725125447086,0.7568,2505.3,2505.1,0.23949]
[1725125447492,4.7488,2505.3,2505.1,0.23949]
[1725125449496,4.98828,2505.3,2505.1,0.23949]
[1725125449999,4.7488,2505.3,2505.1,0.23949]
[1725125450388,4.7488,2505.3,2505.2,0.23948]
[1725125450586,0.7568,2505.3,2505.2,0.23948]
[1725125450791,4.7488,2505.3,2505.2,0.23948]
[1725125451292,4.3603,2505.3,2505.2,0.23948]
[1725125452203,0.378,2505.4,2505.3,0.23948]
[1725125452391,0.00599197,2505.5,2505.4,0.23947]
[1725125457090,0.00599197,2505.5,2505.0,3.5628]
[1725125457304,0.23947,2505.4,2505.1,0.23949]
[1725125457597,0.37489197,2505.5,2505.0,0.355]
[1725125457598,0.3838,2505.3,2505.0,0.5945]
[1725125457794,0.23949,2505.2,2505.0,0.2395]
[1725125458099,0.23949,2505.2,2504.9,4.5004]
[1725125458100,0.2395,2505.1,2504.9,4.73991]
[1725125458499,0.3735,2505.2,2504.9,4.73991]
[1725125458500,0.61299,2505.2,2504.9,4.73991]
[1725125458703,0.61299,2505.2,2505.0,0.2395]
[1725125459005,4.60499,2505.2,2505.0,0.2395]
[1725125459622,4.3655,2505.2,2505.0,0.2395]
[1725125460395,4.3655,2505.2,2505.1,0.23949]
[1725125460396,0.3735,2505.2,2505.1,0.23949]
[1725125460894,0.00599197,2505.5,2505.4,0.23947]
[1725125461303,3.99719197,2505.5,2505.4,0.23947]
[1725125463402,0.00599197,2505.5,2505.4,0.23947]
[1725125469215,0.00599197,2505.5,2505.3,0.23947]
[1725125469216,4.23665197,2505.5,2505.3,0.23947]
[1725125469411,0.7541,2505.4,2505.0,0.2395]
[1725125469613,3.54982333,2505.3,2504.9,7.94771]
[1725125469906,0.2395,2505.1,2504.9,7.3208]
[1725125470107,0.386,2505.0,2504.9,7.3208]
[1725125470619,0.386,2505.0,2504.9,4.113]
[1725125470906,4.6175,2505.0,2504.9,4.113]
[1725125471100,8.99749502,2505.0,2504.9,4.113]
[1725125471300,9.09732966,2505.0,2504.9,4.113]
[1725125471497,15.09732966,2505.0,2504.9,4.113]
[1725125471905,14.99749502,2505.0,2504.9,4.113]
[1725125472601,15.0973335,2505.0,2504.9,4.113]